[Event "Hungarian Rapid-ch 2022"]
[Site "Ajka"]
[Date "2022.07.15"]
[Round "1.10"]
[White "Fellegi, Zoltan"]
[Black "Antal, Gergely"]
[Result "0-1"]
[ECO "B10"]
[WhiteElo "1978"]
[BlackElo "2571"]
[Annotator "ChessBase"]
[PlyCount "94"]
[EventDate "2022.07.15"]
[EventType "swiss"]
[EventCountry "HUN"]
[SourceTitle "playchess.com"]
[Source "ChessBase"]
[SourceQuality "1"]
[TimeControl "900+10"]

1. e4 {[%emt 0:00:12]} c6 {[%emt 0:00:12]} 2. d3 {[%emt 0:00:13]} d5 {[%emt 0:00:02]} 3. Nc3 {[%emt 0:00:01]} e5 {[%emt 0:00:15]} 4. Nf3 {[%emt 0:00:29]} Bg4 {[%emt 0:01:31]} 5. Be2 {[%emt 0:00:29]} d4 {[%emt 0:00:03]} 6. Nb1 {[%emt 0:00:02]} Bxf3 {[%emt 0:00:17]} 7. Bxf3 {[%emt 0:00:28]} Nf6 {[%emt 0:00:01]} 8. a4 {[%emt 0:00:25]} Bd6 {[%emt 0:00:25]} 9. Na3 {[%emt 0:00:15]} Nbd7 {[%emt 0:00:27]} 10. O-O {[%emt 0:00:30]} Bc7 {[%emt 0:00:06]} 11. Nc4 {[%emt 0:00:50]} a6 {[%emt 0:00:02]} 12. b4 {[%emt 0:00:40]} b5 {[%emt 0:00:20]} 13. Nd2 {[%emt 0:00:48]} Bd6 {[%emt 0:00:18]} 14. Ba3 {[%emt 0:01:02]} Qe7 {[%emt 0:00:04]} 15. Rb1 {[%emt 0:00:11]} Nb6 {[%emt 0:00:12]} 16. a5 {[%emt 0:00:12]} Na4 {[%emt 0:00:02]} 17. Rb3 {[%emt 0:00:22]} O-O {[%emt 0:00:26]} 18. Nb1 {[%emt 0:00:07]} c5 {[%emt 0:00:13]} 19. bxc5 {[%emt 0:00:06]} Bxc5 {[%emt 0:00:02]} 20. Bc1 {[%emt 0:00:42]} Bb4 {[%emt 0:00:39]} 21. Bd2 {[%emt 0:00:42]} Bxd2 {[%emt 0:00:02]} 22. Qxd2 {[%emt 0:00:06]} Rac8 {[%emt 0:00:01]} 23. Bd1 {[%emt 0:02:05]} Nd7 {[%emt 0:02:32]} 24. f4 exf4 {[%emt 0:00:02]} 25. Qxf4 {[%emt 0:00:51]} Ne5 {[%emt 0:00:08]} 26. Nd2 {[%emt 0:00:39]} Rc6 {[%emt 0:02:45]} 27. Qf2 {[%emt 0:00:22]} Rd8 {[%emt 0:00:22]} 28. h3 {[%emt 0:00:28]} Rf6 {[%emt 0:01:17]} 29. Nf3 {[%emt 0:00:26]} Nc3 {[%emt 0:00:43]} 30. Qg3 {[%emt 0:00:35]} Nxd1 {[%emt 0:01:18]} 31. Qxe5 {[%emt 0:00:47]} Qxe5 {[%emt 0:00:22]} 32. Nxe5 {[%emt 0:00:02]} Rxf1+ {[%emt 0:00:01]} 33. Kxf1 {[%emt 0:00:01]} Rc8 {[%emt 0:00:17]} 34. Nf3 {[%emt 0:00:21]} Rxc2 {[%emt 0:00:23]} 35. Nxd4 {[%emt 0:00:04]} Ne3+ {[%emt 0:00:02]} 36. Kg1 {[%emt 0:00:48]} Rxg2+ {[%emt 0:00:02]} 37. Kh1 {[%emt 0:00:00]} Ra2 {[%emt 0:00:25]} 38. Rc3 {[%emt 0:00:33]} g6 {[%emt 0:00:09]} 39. Nc6 {[%emt 0:00:09]} Nd1 {[%emt 0:00:09]} 40. Rc1 {[%emt 0:01:12]} Nf2+ {[%emt 0:00:03]} 41. Kg1 {[%emt 0:00:01]} Nxd3 {[%emt 0:00:04]} 42. Rd1 {[%emt 0:00:12]} Nf2 {[%emt 0:00:12]} 43. Rd8+ {[%emt 0:00:02]} Kg7 {[%emt 0:00:01]} 44. Ra8 {[%emt 0:00:02]} Nxh3+ {[%emt 0:00:37]} 45. Kf1 {[%emt 0:00:00]} b4 {[%emt 0:00:24]} 46. Rb8 {[%emt 0:00:13]} Nf4 {[%emt 0:00:01]} 47. Rxb4 {[%emt 0:00:10]} Ra1+ {[%emt 0:00:01]} 0-1

[Event "Hungarian Rapid-ch 2022"]
[Site "Ajka"]
[Date "2022.07.15"]
[Round "1.11"]
[White "Horvath, Adam"]
[Black "Palla, Gyorgy"]
[Result "1-0"]
[ECO "B50"]
[WhiteElo "2520"]
[BlackElo "1983"]
[Annotator "ChessBase"]
[PlyCount "71"]
[EventDate "2022.07.15"]
[EventType "swiss"]
[EventCountry "HUN"]
[SourceTitle "playchess.com"]
[Source "ChessBase"]
[SourceQuality "1"]
[TimeControl "900+10"]

1. e4 {[%emt 0:00:13]} c5 {[%emt 0:00:15]} 2. Nf3 {[%emt 0:00:02]} d6 {[%emt 0:00:04]} 3. g3 {[%emt 0:00:10]} Nc6 {[%emt 0:00:12]} 4. Bg2 {[%emt 0:00:01]} e5 {[%emt 0:00:16]} 5. O-O {[%emt 0:00:04]} Nf6 {[%emt 0:00:15]} 6. d3 {[%emt 0:00:07]} Bg4 {[%emt 0:00:16]} 7. h3 {[%emt 0:00:09]} Bh5 {[%emt 0:00:12]} 8. c3 {[%emt 0:00:10]} Be7 {[%emt 0:00:11]} 9. Nbd2 {[%emt 0:00:54]} O-O {[%emt 0:00:17]} 10. Nc4 {[%emt 0:00:04]} Rc8 {[%emt 0:01:37]} 11. Ne3 {[%emt 0:00:02]} d5 {[%emt 0:00:22]} 12. Qa4 {[%emt 0:03:30]} d4 {[%emt 0:02:06]} 13. Nd5 {[%emt 0:00:36]} Re8 {[%emt 0:01:09]} 14. c4 {[%emt 0:00:27]} Nxd5 {[%emt 0:00:38]} 15. exd5 {[%emt 0:01:14]} Bxf3 {[%emt 0:00:11]} 16. Bxf3 {[%emt 0:00:01]} Nb4 {[%emt 0:00:38]} 17. Rd1 {[%emt 0:04:01]} f5 {[%emt 0:00:58]} 18. a3 {[%emt 0:00:03]} Nxd3 {[%emt 0:00:14]} 19. d6 {[%emt 0:00:02]} Qxd6 {[%emt 0:00:55]} 20. Bd5+ {[%emt 0:00:07]} Kh8 {[%emt 0:00:09]} 21. Rxd3 {[%emt 0:00:02]} Rb8 {[%emt 0:00:38]} 22. Qxa7 {[%emt 0:01:05]} b5 {[%emt 0:00:19]} 23. Rb3 {[%emt 0:00:49]} bxc4 24. Rxb8 {[%emt 0:00:28]} Rxb8 {[%emt 0:00:56]} 25. Bxc4 {[%emt 0:00:03]} h6 {[%emt 0:00:09]} 26. b4 {[%emt 0:01:16]} cxb4 {[%emt 0:00:42]} 27. axb4 {[%emt 0:00:01]} Rf8 {[%emt 0:00:09]} 28. b5 {[%emt 0:00:42]} Qf6 {[%emt 0:00:32]} 29. Ra6 {[%emt 0:00:09]} Bd6 {[%emt 0:00:30]} 30. Ba3 {[%emt 0:00:44]} f4 {[%emt 0:00:17]} 31. Rxd6 {[%emt 0:00:13]} Qf5 {[%emt 0:00:08]} 32. g4 {[%emt 0:00:15]} Qb1+ {[%emt 0:00:11]} 33. Bf1 {[%emt 0:00:10]} Qa2 {[%emt 0:00:59]} 34. b6 {[%emt 0:00:26]} Qb3 {[%emt 0:00:32]} 35. Rxh6+ {[%emt 0:00:13]} gxh6 {[%emt 0:00:05]} 36. Bxf8 {[%emt 0:00:02]} 1-0

[Event "Hungarian Rapid-ch 2022"]
[Site "Ajka"]
[Date "2022.07.15"]
[Round "1.12"]
[White "Guzs, Laszlo"]
[Black "Varga, Zoltan"]
[Result "1/2-1/2"]
[ECO "D02"]
[WhiteElo "1915"]
[BlackElo "2401"]
[Annotator "ChessBase"]
[PlyCount "101"]
[EventDate "2022.07.15"]
[EventType "swiss"]
[EventCountry "HUN"]
[SourceTitle "playchess.com"]
[Source "ChessBase"]
[SourceQuality "1"]
[TimeControl "900+10"]

1. d4 {[%emt 0:00:12]} d5 {[%emt 0:00:11]} 2. Nf3 {[%emt 0:00:01]} c6 {[%emt 0:00:01]} 3. g3 {[%emt 0:00:11]} Nf6 {[%emt 0:00:03]} 4. Bg2 {[%emt 0:00:01]} Bg4 {[%emt 0:00:01]} 5. h3 {[%emt 0:00:20]} Bh5 {[%emt 0:00:02]} 6. Nbd2 {[%emt 0:00:29]} Nbd7 {[%emt 0:00:08]} 7. O-O {[%emt 0:00:32]} e6 {[%emt 0:00:02]} 8. c4 {[%emt 0:00:10]} Bd6 {[%emt 0:00:07]} 9. b3 {[%emt 0:00:17]} O-O {[%emt 0:00:02]} 10. Bb2 {[%emt 0:00:03]} Qb8 {[%emt 0:00:10]} 11. g4 {[%emt 0:01:14]} Bg6 {[%emt 0:00:02]} 12. Nh4 {[%emt 0:00:57]} a5 {[%emt 0:00:11]} 13. Nxg6 {[%emt 0:00:32]} hxg6 {[%emt 0:00:02]} 14. Qc2 {[%emt 0:01:12]} Bb4 {[%emt 0:00:51]} 15. f4 {[%emt 0:03:41]} a4 {[%emt 0:00:22]} 16. e3 {[%emt 0:00:43]} a3 {[%emt 0:01:20]} 17. Bc3 {[%emt 0:00:10]} Bxc3 {[%emt 0:00:02]} 18. Qxc3 {[%emt 0:00:02]} b5 {[%emt 0:00:09]} 19. c5 {[%emt 0:00:52]} b4 {[%emt 0:00:17]} 20. Qd3 {[%emt 0:00:09]} Qa7 {[%emt 0:00:02]} 21. Rf2 {[%emt 0:01:16]} Rfe8 {[%emt 0:00:22]} 22. Raf1 {[%emt 0:00:25]} Qa6 {[%emt 0:00:06]} 23. Qxa6 {[%emt 0:00:08]} Rxa6 {[%emt 0:00:01]} 24. Bf3 {[%emt 0:00:10]} Nh7 {[%emt 0:00:05]} 25. Be2 {[%emt 0:00:09]} Raa8 {[%emt 0:00:01]} 26. Bd3 {[%emt 0:00:09]} Nhf8 {[%emt 0:00:23]} 27. Nf3 {[%emt 0:00:10]} f6 {[%emt 0:00:02]} 28. Ne1 {[%emt 0:00:08]} Re7 {[%emt 0:00:16]} 29. Nc2 {[%emt 0:00:06]} Rb8 {[%emt 0:00:01]} 30. e4 {[%emt 0:00:25]} Kf7 {[%emt 0:00:55]} 31. Re1 {[%emt 0:00:25]} Ree8 {[%emt 0:03:22]} 32. exd5 {[%emt 0:01:03]} exd5 {[%emt 0:00:10]} 33. Rfe2 {[%emt 0:00:10]} Rxe2 {[%emt 0:00:39]} 34. Rxe2 {[%emt 0:00:02]} Rb7 {[%emt 0:00:03]} 35. Kf2 {[%emt 0:00:33]} Nh7 {[%emt 0:00:05]} 36. Kf3 {[%emt 0:00:14]} Ndf8 {[%emt 0:00:01]} 37. h4 {[%emt 0:00:20]} Rb8 {[%emt 0:00:09]} 38. g5 {[%emt 0:00:37]} f5 {[%emt 0:03:53]} 39. Rh2 {[%emt 0:01:05]} Ne6 {[%emt 0:00:36]} 40. h5 {[%emt 0:00:13]} Nhf8 {[%emt 0:01:03]} 41. h6 {[%emt 0:00:13]} gxh6 {[%emt 0:01:15]} 42. Rxh6 {[%emt 0:00:12]} Kg7 {[%emt 0:00:01]} 43. Rh2 {[%emt 0:00:08]} Nd7 {[%emt 0:00:02]} 44. Ke3 {[%emt 0:00:29]} Re8 {[%emt 0:00:50]} 45. Kf3 {[%emt 0:00:01]} Rb8 {[%emt 0:00:01]} 46. Ke3 {[%emt 0:00:01]} Ndf8 {[%emt 0:00:07]} 47. Rh6 {[%emt 0:00:10]} Nd7 {[%emt 0:00:35]} 48. Rh2 {[%emt 0:00:28]} Re8 {[%emt 0:00:05]} 49. Kf3 {[%emt 0:00:01]} Rb8 {[%emt 0:00:01]} 50. Ke3 {[%emt 0:00:01]} Re8 {[%emt 0:00:01]} 51. Kf3 {[%emt 0:00:01]} 1/2-1/2

[Event "Hungarian Rapid-ch 2022"]
[Site "Ajka"]
[Date "2022.07.15"]
[Round "1.13"]
[White "Kantor, Gergely"]
[Black "Mozes, Ervin"]
[Result "1-0"]
[ECO "A46"]
[WhiteElo "2582"]
[BlackElo "2039"]
[Annotator "ChessBase"]
[PlyCount "55"]
[EventDate "2022.07.15"]
[EventType "swiss"]
[EventCountry "HUN"]
[SourceTitle "playchess.com"]
[Source "ChessBase"]
[SourceQuality "1"]
[TimeControl "900+10"]

1. d4 {[%emt 0:00:53]} Nf6 {[%emt 0:00:16]} 2. Nf3 {[%emt 0:00:03]} d6 {[%emt 0:00:05]} 3. c4 {[%emt 0:00:06]} c6 {[%emt 0:00:02]} 4. Nc3 {[%emt 0:00:01]} Bf5 {[%emt 0:00:01]} 5. d5 {[%emt 0:00:13]} cxd5 {[%emt 0:00:43]} 6. cxd5 {[%emt 0:00:03]} a6 {[%emt 0:00:37]} 7. Nd4 {[%emt 0:00:04]} Bg6 {[%emt 0:00:02]} 8. g3 {[%emt 0:01:13]} Ne4 {[%emt 0:00:55]} 9. Bg2 {[%emt 0:00:02]} Nxc3 {[%emt 0:00:17]} 10. bxc3 {[%emt 0:00:01]} Nd7 {[%emt 0:00:20]} 11. O-O {[%emt 0:00:03]} Rc8 {[%emt 0:00:31]} 12. f4 {[%emt 0:01:04]} h6 {[%emt 0:00:46]} 13. e4 {[%emt 0:00:02]} Rxc3 {[%emt 0:00:38]} 14. Kh1 {[%emt 0:01:24]} Nc5 {[%emt 0:00:17]} 15. Bb2 {[%emt 0:00:11]} Rd3 {[%emt 0:00:08]} 16. Qe2 {[%emt 0:00:04]} Qa5 {[%emt 0:00:43]} 17. Nb3 {[%emt 0:01:59]} Nxb3 {[%emt 0:00:04]} 18. axb3 {[%emt 0:00:10]} Qd2 {[%emt 0:00:04]} 19. Qg4 {[%emt 0:00:17]} e6 {[%emt 0:02:27]} 20. Rad1 {[%emt 0:03:15]} Qxb2 {[%emt 0:02:35]} 21. Rxd3 {[%emt 0:00:02]} h5 {[%emt 0:00:14]} 22. Qf3 {[%emt 0:00:46]} Be7 {[%emt 0:00:58]} 23. f5 {[%emt 0:00:27]} exf5 {[%emt 0:00:12]} 24. exf5 {[%emt 0:00:01]} Bh7 {[%emt 0:00:01]} 25. Re3 {[%emt 0:00:17]} Kd8 {[%emt 0:00:06]} 26. Qxh5 {[%emt 0:00:06]} g6 {[%emt 0:00:20]} 27. Qg4 {[%emt 0:00:13]} gxf5 {[%emt 0:00:10]} 28. Qb4 {[%emt 0:00:01]} 1-0

[Event "Hungarian Rapid-ch 2022"]
[Site "Ajka"]
[Date "2022.07.15"]
[Round "1.14"]
[White "Pais, Nimrod"]
[Black "Aczel, Gergely"]
[Result "0-1"]
[ECO "B50"]
[WhiteElo "1897"]
[BlackElo "2499"]
[Annotator "ChessBase"]
[PlyCount "93"]
[EventDate "2022.07.15"]
[EventType "swiss"]
[EventCountry "HUN"]
[SourceTitle "playchess.com"]
[Source "ChessBase"]
[SourceQuality "1"]
[TimeControl "900+10"]

1. e4 {[%emt 0:00:12]} c5 {[%emt 0:00:11]} 2. Nf3 {[%emt 0:00:03]} d6 {[%emt 0:00:01]} 3. Nc3 {[%emt 0:00:03]} Nf6 {[%emt 0:00:01]} 4. g3 {[%emt 0:00:05]} e5 {[%emt 0:00:35]} 5. Bg2 {[%emt 0:00:03]} g6 {[%emt 0:00:14]} 6. O-O {[%emt 0:00:03]} Bg7 {[%emt 0:00:02]} 7. h3 {[%emt 0:00:14]} O-O {[%emt 0:00:15]} 8. d3 {[%emt 0:00:02]} Nc6 {[%emt 0:00:15]} 9. Be3 {[%emt 0:02:07]} Nd4 {[%emt 0:00:18]} 10. Nd5 {[%emt 0:01:01]} Nxd5 {[%emt 0:00:02]} 11. exd5 {[%emt 0:00:03]} Bd7 {[%emt 0:00:55]} 12. c3 {[%emt 0:00:10]} Nxf3+ {[%emt 0:00:28]} 13. Qxf3 {[%emt 0:00:07]} f5 {[%emt 0:00:17]} 14. Bd2 {[%emt 0:00:15]} Qb6 {[%emt 0:01:29]} 15. b3 {[%emt 0:00:16]} a5 {[%emt 0:00:41]} 16. Rab1 {[%emt 0:00:23]} Qa6 {[%emt 0:00:13]} 17. Rfe1 {[%emt 0:00:44]} b5 {[%emt 0:00:45]} 18. Bf1 {[%emt 0:00:02]} Qb7 {[%emt 0:00:29]} 19. c4 {[%emt 0:00:35]} b4 {[%emt 0:02:31]} 20. Qe2 {[%emt 0:00:38]} a4 {[%emt 0:00:04]} 21. Bg5 {[%emt 0:00:37]} Qc7 {[%emt 0:00:24]} 22. Bg2 {[%emt 0:00:45]} f4 {[%emt 0:02:39]} 23. g4 {[%emt 0:00:14]} h6 {[%emt 0:00:26]} 24. Be4 {[%emt 0:01:16]} hxg5 {[%emt 0:00:08]} 25. Bxg6 {[%emt 0:00:09]} f3 {[%emt 0:01:36]} 26. Qd2 {[%emt 0:00:23]} Rf4 {[%emt 0:00:04]} 27. Re4 {[%emt 0:00:36]} Raf8 {[%emt 0:00:25]} 28. Rbe1 {[%emt 0:00:14]} Qc8 {[%emt 0:00:18]} 29. Bh5 {[%emt 0:00:11]} Kh7 {[%emt 0:01:01]} 30. Kh2 {[%emt 0:00:30]} Kh6 {[%emt 0:00:11]} 31. Rh1 {[%emt 0:00:57]} Bf6 {[%emt 0:00:16]} 32. Rxf4 {[%emt 0:00:24]} exf4 {[%emt 0:00:15]} 33. Qd1 {[%emt 0:00:10]} Be8 {[%emt 0:00:45]} 34. Qxf3 {[%emt 0:00:21]} Bxh5 {[%emt 0:00:05]} 35. gxh5 {[%emt 0:00:03]} axb3 {[%emt 0:00:12]} 36. axb3 {[%emt 0:00:01]} Qe8 {[%emt 0:00:19]} 37. h4 {[%emt 0:01:32]} Rg8 {[%emt 0:00:35]} 38. Qg4 {[%emt 0:01:11]} Qxh5 {[%emt 0:00:47]} 39. Qxh5+ {[%emt 0:00:04]} Kxh5 {[%emt 0:00:03]} 40. Kg2 {[%emt 0:00:27]} g4 {[%emt 0:00:13]} 41. Re1 {[%emt 0:00:14]} Be5 {[%emt 0:00:03]} 42. f3 {[%emt 0:00:20]} Ra8 {[%emt 0:00:47]} 43. d4 {[%emt 0:01:20]} Ra2+ {[%emt 0:00:07]} 44. Kf1 {[%emt 0:00:05]} Bxd4 {[%emt 0:00:05]} 45. fxg4+ {[%emt 0:00:07]} Kxg4 {[%emt 0:00:02]} 46. Re6 {[%emt 0:00:14]} f3 {[%emt 0:00:06]} 47. Ke1 0-1

[Event "Hungarian Rapid-ch 2022"]
[Site "Ajka"]
[Date "2022.07.15"]
[Round "1.15"]
[White "Mihok, Oliver"]
[Black "Nyoger, Istvan"]
[Result "1-0"]
[ECO "B30"]
[WhiteElo "2549"]
[BlackElo "1814"]
[Annotator "ChessBase"]
[PlyCount "41"]
[EventDate "2022.07.15"]
[EventType "swiss"]
[EventCountry "HUN"]
[SourceTitle "playchess.com"]
[Source "ChessBase"]
[SourceQuality "1"]
[TimeControl "900+10"]

1. e4 {[%emt 0:00:12]} c5 {[%emt 0:00:12]} 2. Nf3 {[%emt 0:00:02]} Nc6 {[%emt 0:00:02]} 3. Nc3 {[%emt 0:00:06]} Nf6 {[%emt 0:00:08]} 4. Bb5 {[%emt 0:00:04]} Nd4 {[%emt 0:00:55]} 5. e5 {[%emt 0:00:11]} Nxb5 {[%emt 0:00:36]} 6. Nxb5 {[%emt 0:00:02]} Nd5 {[%emt 0:00:47]} 7. Ng5 {[%emt 0:00:02]} e6 {[%emt 0:01:24]} 8. Ne4 {[%emt 0:00:17]} a6 {[%emt 0:01:02]} 9. Nbd6+ {[%emt 0:00:06]} Bxd6 {[%emt 0:00:11]} 10. Nxd6+ {[%emt 0:00:02]} Ke7 {[%emt 0:00:26]} 11. Qh5 {[%emt 0:00:59]} Qf8 {[%emt 0:01:32]} 12. O-O {[%emt 0:00:33]} f6 {[%emt 0:00:47]} 13. f4 {[%emt 0:00:23]} Nc7 {[%emt 0:00:22]} 14. b3 {[%emt 0:00:46]} Ne8 {[%emt 0:00:37]} 15. Ba3 {[%emt 0:00:19]} b6 {[%emt 0:00:39]} 16. Nc4 {[%emt 0:00:56]} Rb8 {[%emt 0:00:38]} 17. Nxb6 {[%emt 0:00:08]} g6 {[%emt 0:02:24]} 18. Qe2 {[%emt 0:03:06]} Kf7 {[%emt 0:01:58]} 19. d4 {[%emt 0:00:02]} Rxb6 {[%emt 0:00:09]} 20. Bxc5 {[%emt 0:00:02]} Rc6 {[%emt 0:00:11]} 21. Bxf8 {[%emt 0:00:03]} 1-0

[Event "Hungarian Rapid-ch 2022"]
[Site "Ajka"]
[Date "2022.07.15"]
[Round "1.16"]
[White "Pasti, Anna"]
[Black "Bagi, Mate"]
[Result "0-1"]
[ECO "A34"]
[WhiteElo "2005"]
[BlackElo "2460"]
[Annotator "ChessBase"]
[PlyCount "78"]
[EventDate "2022.07.15"]
[EventType "swiss"]
[EventCountry "HUN"]
[SourceTitle "playchess.com"]
[Source "ChessBase"]
[SourceQuality "1"]
[TimeControl "900+10"]

1. c4 {[%emt 0:00:13]} Nf6 {[%emt 0:00:16]} 2. g3 {[%emt 0:00:01]} c5 {[%emt 0:00:04]} 3. Bg2 {[%emt 0:00:03]} d5 {[%emt 0:00:07]} 4. cxd5 {[%emt 0:00:03]} Nxd5 {[%emt 0:00:02]} 5. Nc3 {[%emt 0:00:01]} Nc7 {[%emt 0:00:07]} 6. e3 {[%emt 0:00:23]} e5 {[%emt 0:00:33]} 7. Nge2 {[%emt 0:00:06]} Nc6 {[%emt 0:00:34]} 8. d4 {[%emt 0:01:10]} exd4 {[%emt 0:00:41]} 9. Bxc6+ {[%emt 0:00:18]} bxc6 {[%emt 0:00:03]} 10. exd4 {[%emt 0:00:02]} Be7 {[%emt 0:01:31]} 11. dxc5 {[%emt 0:00:39]} Qxd1+ {[%emt 0:00:27]} 12. Kxd1 {[%emt 0:00:02]} Bxc5 {[%emt 0:00:08]} 13. Ne4 {[%emt 0:00:04]} Bb6 {[%emt 0:01:29]} 14. Bf4 {[%emt 0:03:09]} Bg4 {[%emt 0:00:56]} 15. Re1 {[%emt 0:04:35]} O-O-O+ {[%emt 0:01:09]} 16. Kc1 {[%emt 0:01:45]} Rhe8 {[%emt 0:01:22]} 17. Nd6+ {[%emt 0:01:20]} Rxd6 {[%emt 0:00:08]} 18. Bxd6 {[%emt 0:00:01]} Rxe2 {[%emt 0:00:21]} 19. Rxe2 {[%emt 0:00:06]} Bxe2 {[%emt 0:00:02]} 20. Kd2 {[%emt 0:00:07]} Bf3 {[%emt 0:00:21]} 21. Bxc7 {[%emt 0:01:20]} Kxc7 {[%emt 0:00:05]} 22. b4 {[%emt 0:00:12]} g5 {[%emt 0:00:46]} 23. a4 {[%emt 0:00:19]} g4 {[%emt 0:00:10]} 24. Rf1 {[%emt 0:00:26]} a6 {[%emt 0:00:41]} 25. Kd3 {[%emt 0:00:20]} Kd6 {[%emt 0:00:04]} 26. Rb1 {[%emt 0:01:37]} Bxf2 {[%emt 0:00:48]} 27. b5 {[%emt 0:00:01]} cxb5 {[%emt 0:01:27]} 28. axb5 {[%emt 0:00:04]} a5 {[%emt 0:00:10]} 29. b6 {[%emt 0:00:17]} Bb7 {[%emt 0:00:03]} 30. Kc3 {[%emt 0:00:27]} Bc5 {[%emt 0:00:53]} 31. Rd1+ {[%emt 0:00:32]} Kc6 {[%emt 0:00:33]} 32. Rf1 {[%emt 0:00:10]} Kxb6 {[%emt 0:00:21]} 33. Rf6+ {[%emt 0:00:23]} Kb5 {[%emt 0:00:08]} 34. Rxf7 {[%emt 0:00:05]} Be4 {[%emt 0:00:02]} 35. Rf4 {[%emt 0:00:06]} Bf3 {[%emt 0:00:16]} 36. Rf7 {[%emt 0:00:02]} a4 {[%emt 0:00:47]} 37. Rxh7 {[%emt 0:00:05]} Bb4+ {[%emt 0:00:23]} 38. Kb2 {[%emt 0:00:41]} a3+ {[%emt 0:00:04]} 39. Ka1 {[%emt 0:00:05]} Bd5 {[%emt 0:00:18]} 0-1

[Event "Hungarian Rapid-ch 2022"]
[Site "Ajka"]
[Date "2022.07.15"]
[Round "1.17"]
[White "Czebe, Attila"]
[Black "Kiss, Csaba"]
[Result "1-0"]
[ECO "C00"]
[WhiteElo "2385"]
[BlackElo "1775"]
[Annotator "ChessBase"]
[PlyCount "83"]
[EventDate "2022.07.15"]
[EventType "swiss"]
[EventCountry "HUN"]
[SourceTitle "playchess.com"]
[Source "ChessBase"]
[SourceQuality "1"]
[TimeControl "900+10"]

1. e4 {[%emt 0:00:12]} e6 {[%emt 0:00:12]} 2. d3 {[%emt 0:00:12]} d5 {[%emt 0:00:02]} 3. Nd2 {[%emt 0:00:02]} Nf6 {[%emt 0:00:03]} 4. Ngf3 {[%emt 0:00:07]} c5 {[%emt 0:00:11]} 5. g3 {[%emt 0:00:02]} Nc6 {[%emt 0:00:03]} 6. Bg2 {[%emt 0:00:01]} h6 {[%emt 0:00:14]} 7. O-O {[%emt 0:00:06]} Be7 {[%emt 0:00:02]} 8. Re1 {[%emt 0:00:01]} O-O {[%emt 0:00:04]} 9. e5 {[%emt 0:00:08]} Nd7 {[%emt 0:00:03]} 10. Nf1 {[%emt 0:00:10]} Qc7 {[%emt 0:00:06]} 11. Qe2 {[%emt 0:02:07]} b6 {[%emt 0:00:05]} 12. h4 {[%emt 0:00:08]} Bb7 {[%emt 0:00:07]} 13. N1h2 {[%emt 0:00:09]} Rac8 {[%emt 0:00:07]} 14. c3 {[%emt 0:00:44]} Ba6 {[%emt 0:00:25]} 15. Ng4 {[%emt 0:00:16]} h5 {[%emt 0:00:24]} 16. Ngh2 {[%emt 0:00:07]} Rfe8 {[%emt 0:03:00]} 17. Bf4 {[%emt 0:00:28]} c4 {[%emt 0:01:08]} 18. d4 {[%emt 0:00:03]} b5 {[%emt 0:00:05]} 19. Ng5 {[%emt 0:00:36]} g6 {[%emt 0:00:47]} 20. g4 {[%emt 0:00:11]} hxg4 {[%emt 0:01:16]} 21. Nxg4 {[%emt 0:00:02]} Bxg5 {[%emt 0:00:27]} 22. Bxg5 {[%emt 0:00:05]} Kg7 {[%emt 0:00:48]} 23. Qe3 {[%emt 0:00:15]} Rh8 {[%emt 0:00:23]} 24. Nf6 {[%emt 0:00:39]} Ncb8 {[%emt 0:00:29]} 25. a3 {[%emt 0:00:56]} Bb7 {[%emt 0:00:13]} 26. Qg3 {[%emt 0:00:02]} a5 {[%emt 0:00:20]} 27. Re3 {[%emt 0:00:02]} Nf8 {[%emt 0:00:33]} 28. h5 {[%emt 0:00:17]} Nh7 {[%emt 0:01:33]} 29. Bh3 {[%emt 0:03:02]} Nxg5 {[%emt 0:02:03]} 30. Qxg5 {[%emt 0:00:02]} Rh6 {[%emt 0:00:11]} 31. Rg3 {[%emt 0:00:02]} Rch8 {[%emt 0:00:20]} 32. Re1 {[%emt 0:01:09]} Qe7 {[%emt 0:00:41]} 33. Ree3 {[%emt 0:00:22]} Nc6 {[%emt 0:00:17]} 34. Ref3 {[%emt 0:00:08]} b4 {[%emt 0:00:20]} 35. axb4 {[%emt 0:00:01]} axb4 {[%emt 0:00:01]} 36. Qe3 {[%emt 0:00:43]} Rxh5 {[%emt 0:00:35]} 37. Nxh5+ {[%emt 0:00:02]} Rxh5 {[%emt 0:00:02]} 38. Rf6 {[%emt 0:00:10]} Qe8 {[%emt 0:01:12]} 39. Bg4 {[%emt 0:00:55]} Rh4 {[%emt 0:00:24]} 40. Qg5 {[%emt 0:00:47]} Qh8 {[%emt 0:00:05]} 41. Rxg6+ {[%emt 0:00:08]} fxg6 {[%emt 0:00:09]} 42. Qf6+ {[%emt 0:00:01]} 1-0

[Event "Hungarian Rapid-ch 2022"]
[Site "Ajka"]
[Date "2022.07.15"]
[Round "1.18"]
[White "Mihalyfi, Gabor"]
[Black "Korpa, Bence"]
[Result "0-1"]
[ECO "B02"]
[WhiteElo "1972"]
[BlackElo "2537"]
[Annotator "ChessBase"]
[PlyCount "46"]
[EventDate "2022.07.15"]
[EventType "swiss"]
[EventCountry "HUN"]
[SourceTitle "playchess.com"]
[Source "ChessBase"]
[SourceQuality "1"]
[TimeControl "900+10"]

1. e4 {[%emt 0:00:37]} Nf6 {[%emt 0:00:16]} 2. Nc3 {[%emt 0:00:08]} d5 {[%emt 0:00:05]} 3. exd5 {[%emt 0:00:15]} Nxd5 {[%emt 0:00:04]} 4. Bc4 {[%emt 0:00:15]} Nxc3 {[%emt 0:00:11]} 5. bxc3 {[%emt 0:00:03]} e6 {[%emt 0:00:26]} 6. Nf3 {[%emt 0:00:08]} Be7 {[%emt 0:00:03]} 7. O-O {[%emt 0:00:02]} O-O {[%emt 0:00:04]} 8. d4 {[%emt 0:00:06]} b6 {[%emt 0:00:11]} 9. Qe2 {[%emt 0:00:21]} Bb7 {[%emt 0:00:17]} 10. a4 {[%emt 0:00:16]} a5 {[%emt 0:00:13]} 11. Bf4 {[%emt 0:00:27]} Nd7 {[%emt 0:00:09]} 12. Rfe1 {[%emt 0:00:24]} Bf6 {[%emt 0:00:07]} 13. Be5 {[%emt 0:00:29]} Nxe5 {[%emt 0:00:58]} 14. Nxe5 {[%emt 0:00:12]} Bd5 {[%emt 0:01:15]} 15. Rad1 {[%emt 0:00:38]} Bxe5 {[%emt 0:01:08]} 16. Bxd5 {[%emt 0:00:05]} Bxh2+ {[%emt 0:00:08]} 17. Kxh2 {[%emt 0:00:12]} Qxd5 {[%emt 0:00:04]} 18. c4 {[%emt 0:00:15]} Qd7 {[%emt 0:00:40]} 19. Qe5 {[%emt 0:00:22]} Qxa4 {[%emt 0:00:16]} 20. Rd3 {[%emt 0:00:34]} Qxc4 {[%emt 0:00:17]} 21. Rg3 {[%emt 0:00:12]} f6 {[%emt 0:00:05]} 22. Qxe6+ {[%emt 0:00:12]} Qxe6 {[%emt 0:00:03]} 23. Rxe6 {[%emt 0:00:02]} a4 {[%emt 0:01:40]} 0-1